[Event "*** Titled Tuesday Blitz"]
[Site "Chess.com"]
[Date "2018.08.07"]
[Round "1"]
[White "nitpicker"]
[Black "Alopekos"]
[Result "0-1"]
[WhiteElo "2109"]
[BlackElo "2480"]
[TimeControl "180+2"]
[EndTime "13:06:16 PDT"]
[Termination "Alopekos won by resignation"]

1. d4 {[%clk 0:03:00.9]} 1... Nf6 {[%clk 0:02:57.9]} 2. c4 {[%clk 0:03:00.7]}
2... e6 {[%clk 0:02:59.2]} 3. g3 {[%clk 0:03:00.5]} 3... d5 {[%clk 0:03:00.4]}
4. Nf3 {[%clk 0:03:01.1]} 4... Be7 {[%clk 0:03:01.5]} 5. Bg2 {[%clk 0:03:01.9]}
5... O-O {[%clk 0:03:03.1]} 6. O-O {[%clk 0:03:03.2]} 6... dxc4 {[%clk
0:03:04.6]} 7. Ne5 {[%clk 0:03:03.6]} 7... c5 {[%clk 0:03:04.6]} 8. Be3 {[%clk
0:02:53.6]} 8... Nd5 {[%clk 0:02:56.9]} 9. Bxd5 {[%clk 0:02:35.7]} 9... exd5
{[%clk 0:02:45.5]} 10. dxc5 {[%clk 0:02:34.8]} 10... Bh3 {[%clk 0:02:41.6]} 11.
Re1 {[%clk 0:02:34.5]} 11... Nc6 {[%clk 0:02:25.8]} 12. Nxc6 {[%clk 0:02:30.9]}
12... bxc6 {[%clk 0:02:27.7]} 13. Nc3 {[%clk 0:02:24.7]} 13... Rb8 {[%clk
0:02:07.3]} 14. Na4 {[%clk 0:01:59.7]} 14... Bf6 {[%clk 0:01:19.2]} 15. Bd4
{[%clk 0:01:52]} 15... Bxd4 {[%clk 0:01:09.8]} 16. Qxd4 {[%clk 0:01:52]} 16...
Rb4 {[%clk 0:01:11.4]} 17. Qd1 {[%clk 0:01:51.2]} 17... Qa5 {[%clk 0:01:02.7]}
18. b3 {[%clk 0:01:49.1]} 18... Rfb8 {[%clk 0:01:04.1]} 19. Rb1 {[%clk
0:01:48.9]} 19... Bf5 {[%clk 0:01:00]} 20. Rb2 {[%clk 0:01:43.7]} 20... Rxa4
{[%clk 0:00:58.4]} 21. e4 {[%clk 0:01:37.9]} 21... c3 {[%clk 0:00:43.9]} 22.
Rbe2 {[%clk 0:01:20.1]} 22... Rxe4 {[%clk 0:00:43.9]} 23. f3 {[%clk 0:01:17.5]}
23... Qxc5+ {[%clk 0:00:44.1]} 24. Kg2 {[%clk 0:01:16.9]} 24... c2 {[%clk
0:00:36.5]} 25. Qd2 {[%clk 0:01:09.5]} 25... c1=Q {[%clk 0:00:28.7]} 0-1

[Event "*** Titled Tuesday Blitz"]
[Site "Chess.com"]
[Date "2018.08.07"]
[Round "1"]
[White "tgpgoat"]
[Black "chenrip"]
[Result "0-1"]
[WhiteElo "1988"]
[BlackElo "2447"]
[TimeControl "180+2"]
[EndTime "13:06:43 PDT"]
[Termination "chenrip won on time"]

1. Nf3 {[%clk 0:03:00.7]} 1... Nf6 {[%clk 0:03:00.7]} 2. d4 {[%clk 0:03:01.3]}
2... e6 {[%clk 0:03:02.1]} 3. c4 {[%clk 0:03:01.8]} 3... b6 {[%clk 0:03:03.2]}
4. g3 {[%clk 0:03:02]} 4... Bb7 {[%clk 0:03:04.6]} 5. Bg2 {[%clk 0:03:02.5]}
5... c5 {[%clk 0:03:05.8]} 6. d5 {[%clk 0:03:03]} 6... exd5 {[%clk 0:03:06]} 7.
Nh4 {[%clk 0:03:03.7]} 7... Be7 {[%clk 0:03:00.3]} 8. Nc3 {[%clk 0:03:02.7]}
8... O-O {[%clk 0:02:59.1]} 9. cxd5 {[%clk 0:03:03.1]} 9... d6 {[%clk
0:02:58.1]} 10. O-O {[%clk 0:03:01.1]} 10... Nbd7 {[%clk 0:02:57.5]} 11. Nf5
{[%clk 0:03:01.1]} 11... Bc8 {[%clk 0:02:55.7]} 12. e4 {[%clk 0:02:58.4]} 12...
Re8 {[%clk 0:02:52.8]} 13. Nxe7+ {[%clk 0:02:31.5]} 13... Qxe7 {[%clk
0:02:51.6]} 14. f4 {[%clk 0:02:30.8]} 14... Ba6 {[%clk 0:02:46.5]} 15. Re1
{[%clk 0:02:16.3]} 15... Rad8 {[%clk 0:02:45]} 16. a4 {[%clk 0:01:36.8]} 16...
h6 {[%clk 0:02:11.4]} 17. Na2 {[%clk 0:01:30.6]} 17... Bc4 {[%clk 0:02:02.7]}
18. Bd2 {[%clk 0:01:27.1]} 18... Bd3 {[%clk 0:01:51.3]} 19. Bc3 {[%clk
0:01:22.3]} 19... Bxe4 {[%clk 0:01:49.3]} 20. Bxe4 {[%clk 0:01:11.9]} 20... Nxe4
{[%clk 0:01:49.8]} 21. Qf3 {[%clk 0:01:12.1]} 21... f5 {[%clk 0:01:48.3]} 22. g4
{[%clk 0:01:09]} 22... fxg4 {[%clk 0:01:43.6]} 23. Qxg4 {[%clk 0:01:08.7]} 23...
Ndf6 {[%clk 0:01:44.2]} 24. Qg2 {[%clk 0:01:08.1]} 24... Qf7 {[%clk 0:01:35.4]}
25. Rad1 {[%clk 0:00:22.3]} 25... Re7 {[%clk 0:01:22.3]} 0-1

[Event "*** Titled Tuesday Blitz"]
[Site "Chess.com"]
[Date "2018.08.07"]
[Round "1"]
[White "AlanZhang"]
[Black "Alliswell998"]
[Result "0-1"]
[WhiteElo "1914"]
[BlackElo "2434"]
[TimeControl "180+2"]
[EndTime "13:06:46 PDT"]
[Termination "Alliswell998 won by checkmate"]

1. e4 {[%clk 0:03:01.2]} 1... c5 {[%clk 0:02:58.6]} 2. Nf3 {[%clk 0:03:01.5]}
2... d6 {[%clk 0:02:59.3]} 3. d4 {[%clk 0:03:02]} 3... cxd4 {[%clk 0:03:01.2]}
4. Nxd4 {[%clk 0:03:03.3]} 4... Nf6 {[%clk 0:02:58.2]} 5. Nc3 {[%clk 0:03:01.1]}
5... a6 {[%clk 0:02:56.3]} 6. Be3 {[%clk 0:02:54.7]} 6... e5 {[%clk 0:02:52.6]}
7. Nb3 {[%clk 0:02:55]} 7... Be7 {[%clk 0:02:50.2]} 8. f3 {[%clk 0:02:55.4]}
8... Be6 {[%clk 0:02:47.4]} 9. Qd2 {[%clk 0:02:55.5]} 9... O-O {[%clk
0:02:47.5]} 10. O-O-O {[%clk 0:02:56.2]} 10... a5 {[%clk 0:02:48.2]} 11. Bb5
{[%clk 0:02:48.6]} 11... Na6 {[%clk 0:02:43.9]} 12. Kb1 {[%clk 0:02:37.2]} 12...
Nc7 {[%clk 0:02:40]} 13. Ba4 {[%clk 0:02:24]} 13... Qb8 {[%clk 0:02:37.9]} 14.
Nb5 {[%clk 0:02:20.2]} 14... Nfe8 {[%clk 0:02:19.5]} 15. Bb6 {[%clk 0:02:07.6]}
15... Nxb5 {[%clk 0:02:10.8]} 16. Bxb5 {[%clk 0:02:07.7]} 16... Nc7 {[%clk
0:02:12]} 17. Ba4 {[%clk 0:02:02.4]} 17... Ra6 {[%clk 0:02:11.3]} 18. Qf2 {[%clk
0:01:53.4]} 18... Na8 {[%clk 0:02:07]} 19. Bxa5 {[%clk 0:01:02]} 19... b5 {[%clk
0:02:05]} 20. Bxb5 {[%clk 0:00:25.8]} 20... Qxb5 {[%clk 0:02:06]} 21. Bc3 {[%clk
0:00:25.8]} 21... Nb6 {[%clk 0:02:00.2]} 22. Nc1 {[%clk 0:00:14.2]} 22... Na4
{[%clk 0:01:57.1]} 23. Qd2 {[%clk 0:00:12.1]} 23... Rb8 {[%clk 0:01:55.8]} 24.
b3 {[%clk 0:00:11.1]} 24... Bg5 {[%clk 0:01:52]} 25. Qe1 {[%clk 0:00:11.7]}
25... h6 {[%clk 0:01:44]} 26. h4 {[%clk 0:00:11.6]} 26... Bd8 {[%clk 0:01:42.6]}
27. Ba1 {[%clk 0:00:11.2]} 27... Ba5 {[%clk 0:01:41.9]} 28. Qe3 {[%clk
0:00:10.7]} 28... Bb6 {[%clk 0:01:37.9]} 29. Qd2 {[%clk 0:00:08.7]} 29... Bc5
{[%clk 0:01:35.5]} 30. Nd3 {[%clk 0:00:07.6]} 30... Bd4 {[%clk 0:01:34.9]} 31.
c3 {[%clk 0:00:05]} 31... Bxb3 {[%clk 0:01:34.3]} 32. axb3 {[%clk 0:00:05.7]}
32... Qxb3+ {[%clk 0:01:36.2]} 33. Nb2 {[%clk 0:00:03.8]} 33... Nxc3+ {[%clk
0:01:37]} 34. Kc1 {[%clk 0:00:05]} 34... Rxa1# {[%clk 0:01:37.5]} 0-1

[Event "*** Titled Tuesday Blitz"]
[Site "Chess.com"]
[Date "2018.08.07"]
[Round "1"]
[White "Drags95"]
[Black "orrbaverlekszarnyon"]
[Result "1-0"]
[WhiteElo "2618"]
[BlackElo "2262"]
[TimeControl "180+2"]
[EndTime "13:07:08 PDT"]
[Termination "Drags95 won by checkmate"]

1. e4 {[%clk 0:01:10.3]} 1... c5 {[%clk 0:02:58.8]} 2. Nf3 {[%clk 0:01:11.1]}
2... d6 {[%clk 0:02:59.9]} 3. d4 {[%clk 0:01:12.1]} 3... cxd4 {[%clk 0:03:01.8]}
4. Nxd4 {[%clk 0:01:13.8]} 4... Nf6 {[%clk 0:03:03.4]} 5. Nc3 {[%clk 0:01:15.3]}
5... g6 {[%clk 0:03:04.8]} 6. Be3 {[%clk 0:01:12.9]} 6... Bg7 {[%clk 0:03:06.1]}
7. f3 {[%clk 0:01:14.2]} 7... O-O {[%clk 0:03:07.4]} 8. Qd2 {[%clk 0:01:15.7]}
8... Nc6 {[%clk 0:03:08.5]} 9. O-O-O {[%clk 0:01:15.6]} 9... d5 {[%clk
0:03:09.7]} 10. exd5 {[%clk 0:01:16.6]} 10... Nxd5 {[%clk 0:03:11.6]} 11. Nxc6
{[%clk 0:01:18.1]} 11... bxc6 {[%clk 0:03:13.5]} 12. Bd4 {[%clk 0:01:19.5]}
12... e5 {[%clk 0:03:14.2]} 13. Bc5 {[%clk 0:01:20.1]} 13... Be6 {[%clk
0:03:15.6]} 14. Ne4 {[%clk 0:01:20.5]} 14... Re8 {[%clk 0:03:11.1]} 15. h4
{[%clk 0:01:14]} 15... a5 {[%clk 0:03:08.5]} 16. h5 {[%clk 0:01:13.1]} 16... Nb4
{[%clk 0:03:07.5]} 17. a3 {[%clk 0:00:54.6]} 17... Qxd2+ {[%clk 0:03:03.5]} 18.
Rxd2 {[%clk 0:00:56.3]} 18... Bh6 {[%clk 0:02:34.8]} 19. axb4 {[%clk 0:00:39.6]}
19... axb4 {[%clk 0:02:36.7]} 20. b3 {[%clk 0:00:40.9]} 20... Ra1+ {[%clk
0:02:26.7]} 21. Kb2 {[%clk 0:00:40.5]} 21... Rea8 {[%clk 0:02:27.6]} 22. Bxb4
{[%clk 0:00:32]} 22... Bxd2 {[%clk 0:02:10.2]} 23. Nxd2 {[%clk 0:00:32.7]} 23...
R8a2+ {[%clk 0:02:05.7]} 24. Kc3 {[%clk 0:00:33.3]} 24... Rc1 {[%clk 0:02:06.3]}
25. hxg6 {[%clk 0:00:25.9]} 25... hxg6 {[%clk 0:02:06.2]} 26. Ne4 {[%clk
0:00:27]} 26... Raa1 {[%clk 0:01:56.7]} 27. Be7 {[%clk 0:00:20.1]} 27... f5
{[%clk 0:01:39.8]} 28. Nd2 {[%clk 0:00:21.3]} 28... Ra2 {[%clk 0:01:34.1]} 29.
Bg5 {[%clk 0:00:22.4]} 29... Rcxc2+ {[%clk 0:01:32.5]} 30. Kd3 {[%clk
0:00:23.7]} 30... f4 {[%clk 0:01:31.5]} 31. Ne4 {[%clk 0:00:22.8]} 31... Bxb3
{[%clk 0:01:25.1]} 32. Nf6+ {[%clk 0:00:16]} 32... Kf7 {[%clk 0:01:25.9]} 33.
Ke4 {[%clk 0:00:16.8]} 33... Bd5+ {[%clk 0:01:20.1]} 34. Kxe5 {[%clk 0:00:17.6]}
34... Ra1 {[%clk 0:01:12.9]} 35. Rh7+ {[%clk 0:00:18.4]} 35... Kf8 {[%clk
0:01:10.8]} 36. Bh6# {[%clk 0:00:19.9]} 1-0

[Event "*** Titled Tuesday Blitz"]
[Site "Chess.com"]
[Date "2018.08.07"]
[Round "1"]
[White "m3alam"]
[Black "Baggio95"]
[Result "1-0"]
[WhiteElo "2167"]
[BlackElo "2480"]
[TimeControl "180+2"]
[EndTime "13:07:09 PDT"]
[Termination "m3alam won by resignation"]

1. d4 {[%clk 0:03:01]} 1... Nf6 {[%clk 0:02:57.9]} 2. Nf3 {[%clk 0:03:00.5]}
2... c5 {[%clk 0:02:59.3]} 3. d5 {[%clk 0:02:57.1]} 3... b5 {[%clk 0:02:59.5]}
4. Bg5 {[%clk 0:02:51.1]} 4... Qb6 {[%clk 0:03:00.4]} 5. e3 {[%clk 0:02:43.1]}
5... a6 {[%clk 0:02:56.3]} 6. a4 {[%clk 0:02:41.7]} 6... bxa4 {[%clk 0:02:46]}
7. Bxf6 {[%clk 0:02:33.4]} 7... Qxf6 {[%clk 0:02:37.3]} 8. Nc3 {[%clk
0:02:34.2]} 8... g6 {[%clk 0:02:17.6]} 9. Nxa4 {[%clk 0:02:21.3]} 9... Bg7
{[%clk 0:02:14.3]} 10. Bc4 {[%clk 0:02:19.6]} 10... O-O {[%clk 0:02:10]} 11. O-O
{[%clk 0:02:16.8]} 11... Bb7 {[%clk 0:02:02.1]} 12. Nxc5 {[%clk 0:02:10.4]}
12... Qb6 {[%clk 0:01:59.3]} 13. Na4 {[%clk 0:02:03.4]} 13... Qc7 {[%clk
0:01:53.4]} 14. Be2 {[%clk 0:01:58.8]} 14... d6 {[%clk 0:01:53.3]} 15. Qd2
{[%clk 0:01:45.4]} 15... Nd7 {[%clk 0:01:52.2]} 16. c4 {[%clk 0:01:39.4]} 16...
a5 {[%clk 0:01:50]} 17. Nd4 {[%clk 0:01:32.6]} 17... Rfb8 {[%clk 0:01:42.2]} 18.
Rfb1 {[%clk 0:01:29.6]} 18... Rc8 {[%clk 0:01:26.4]} 19. Nb5 {[%clk 0:01:29.8]}
19... Qd8 {[%clk 0:01:26.2]} 20. Ra3 {[%clk 0:01:22.8]} 20... Ba6 {[%clk
0:01:25.8]} 21. b3 {[%clk 0:01:09.1]} 21... Bxb5 {[%clk 0:01:19.3]} 22. cxb5
{[%clk 0:01:09.2]} 22... Nb6 {[%clk 0:01:17.9]} 23. Ra2 {[%clk 0:01:04.5]} 23...
Ra7 {[%clk 0:00:57.5]} 24. Rc1 {[%clk 0:00:53.7]} 24... Rxc1+ {[%clk 0:00:56.8]}
25. Qxc1 {[%clk 0:00:54]} 25... Nxd5 {[%clk 0:00:57.7]} 26. Rc2 {[%clk
0:00:46.8]} 26... Ra8 {[%clk 0:00:56.4]} 27. Bf3 {[%clk 0:00:36.9]} 27... e6
{[%clk 0:00:53.4]} 28. Bxd5 {[%clk 0:00:37.9]} 28... exd5 {[%clk 0:00:55.3]} 29.
b6 {[%clk 0:00:38.4]} 29... Rb8 {[%clk 0:00:52.7]} 30. b7 {[%clk 0:00:38.6]}
30... d4 {[%clk 0:00:46.5]} 31. Rc8 {[%clk 0:00:39]} 1-0

[Event "*** Titled Tuesday Blitz"]
[Site "Chess.com"]
[Date "2018.08.07"]
[Round "1"]
[White "BilodeauA"]
[Black "muran29"]
[Result "1-0"]
[WhiteElo "2722"]
[BlackElo "2337"]
[TimeControl "180+2"]
[EndTime "13:07:18 PDT"]
[Termination "BilodeauA won by resignation"]

1. e4 {[%clk 0:02:56.6]} 1... c6 {[%clk 0:02:53.2]} 2. d4 {[%clk 0:02:55.9]}
2... d5 {[%clk 0:02:54.3]} 3. exd5 {[%clk 0:02:57.8]} 3... cxd5 {[%clk
0:02:55.4]} 4. Bd3 {[%clk 0:02:59.1]} 4... Nc6 {[%clk 0:02:56.5]} 5. c3 {[%clk
0:03:00.1]} 5... Nf6 {[%clk 0:02:54.7]} 6. h3 {[%clk 0:03:01.2]} 6... e5 {[%clk
0:02:55.6]} 7. dxe5 {[%clk 0:03:01.9]} 7... Nxe5 {[%clk 0:02:57.5]} 8. Nf3
{[%clk 0:03:03.4]} 8... Nxd3+ {[%clk 0:02:56.2]} 9. Qxd3 {[%clk 0:03:05.3]} 9...
Be7 {[%clk 0:02:56.8]} 10. O-O {[%clk 0:03:06.3]} 10... O-O {[%clk 0:02:58.1]}
11. Bg5 {[%clk 0:03:05.6]} 11... h6 {[%clk 0:02:57.8]} 12. Bh4 {[%clk 0:03:02]}
12... Be6 {[%clk 0:02:55.5]} 13. Nbd2 {[%clk 0:03:01.7]} 13... Rc8 {[%clk
0:02:51.8]} 14. Nd4 {[%clk 0:03:01.7]} 14... Bd7 {[%clk 0:02:47.7]} 15. Rfe1
{[%clk 0:03:00.8]} 15... Re8 {[%clk 0:02:48.7]} 16. Re3 {[%clk 0:02:52.1]} 16...
Nh5 {[%clk 0:02:39.7]} 17. Bxe7 {[%clk 0:02:41.2]} 17... Rxe7 {[%clk 0:02:41.6]}
18. Rae1 {[%clk 0:02:13.5]} 18... Nf4 {[%clk 0:02:36.3]} 19. Qb1 {[%clk
0:02:10.6]} 19... Rxe3 {[%clk 0:02:36.1]} 20. Rxe3 {[%clk 0:02:12.5]} 20... Qg5
{[%clk 0:02:35.3]} 21. Rg3 {[%clk 0:02:13.4]} 21... Nxh3+ {[%clk 0:02:35.3]} 22.
gxh3 {[%clk 0:02:10.2]} 22... Qxd2 {[%clk 0:02:35.7]} 23. Nf3 {[%clk 0:01:29.7]}
23... Qf4 {[%clk 0:02:33.4]} 24. Qd3 {[%clk 0:01:29.9]} 24... Qe4 {[%clk
0:01:46.6]} 25. Qd2 {[%clk 0:01:19.9]} 25... Kh8 {[%clk 0:01:29.6]} 26. Qd4
{[%clk 0:01:06]} 26... Qxd4 {[%clk 0:01:26.7]} 27. Nxd4 {[%clk 0:01:07.9]} 27...
Re8 {[%clk 0:01:28.4]} 28. Kg2 {[%clk 0:01:06.9]} 28... Re1 {[%clk 0:01:28.1]}
29. Rd3 {[%clk 0:01:04.5]} 29... Rb1 {[%clk 0:01:18.4]} 30. b4 {[%clk 0:01:05]}
30... Rb2 {[%clk 0:01:19]} 31. Re3 {[%clk 0:01:01]} 31... Rxa2 {[%clk
0:00:34.5]} 32. Re7 {[%clk 0:01:02.1]} 32... Be6 {[%clk 0:00:35.8]} 33. Rxb7
{[%clk 0:01:03.2]} 33... Ra3 {[%clk 0:00:35.6]} 34. Nb5 {[%clk 0:01:04.2]} 34...
Ra2 {[%clk 0:00:29.3]} 35. Rxa7 {[%clk 0:01:04.1]} 35... Bf5 {[%clk 0:00:29.9]}
36. Rxa2 {[%clk 0:01:04]} 36... Be4+ {[%clk 0:00:31.3]} 37. Kg3 {[%clk
0:01:04.5]} 1-0

[Event "*** Titled Tuesday Blitz"]
[Site "Chess.com"]
[Date "2018.08.07"]
[Round "1"]
[White "hypert"]
[Black "platy3"]
[Result "0-1"]
[WhiteElo "2343"]
[BlackElo "2724"]
[TimeControl "180+2"]
[EndTime "13:07:24 PDT"]
[Termination "platy3 won by resignation"]

1. e4 {[%clk 0:02:58.4]} 1... c5 {[%clk 0:03:00.1]} 2. Nf3 {[%clk 0:02:58.9]}
2... Nc6 {[%clk 0:02:59.9]} 3. Bb5 {[%clk 0:02:59.6]} 3... e6 {[%clk 0:03:00.3]}
4. O-O {[%clk 0:02:59.8]} 4... Nge7 {[%clk 0:03:01.5]} 5. c3 {[%clk 0:02:57.4]}
5... d5 {[%clk 0:03:02.7]} 6. e5 {[%clk 0:02:53.9]} 6... a6 {[%clk 0:03:02.7]}
7. Ba4 {[%clk 0:02:52.9]} 7... b5 {[%clk 0:03:03.5]} 8. Bc2 {[%clk 0:02:53.7]}
8... Ng6 {[%clk 0:03:00.7]} 9. d4 {[%clk 0:02:53.8]} 9... Be7 {[%clk 0:03:01.2]}
10. g3 {[%clk 0:02:53.1]} 10... Bd7 {[%clk 0:02:55.3]} 11. a3 {[%clk 0:02:52.1]}
11... cxd4 {[%clk 0:02:55.3]} 12. cxd4 {[%clk 0:02:52.5]} 12... Rc8 {[%clk
0:02:56.5]} 13. Nc3 {[%clk 0:02:52.6]} 13... Na5 {[%clk 0:02:55.5]} 14. Ne2
{[%clk 0:02:43.1]} 14... Nc4 {[%clk 0:02:54.9]} 15. b3 {[%clk 0:02:35.5]} 15...
Na5 {[%clk 0:02:53.3]} 16. Bd3 {[%clk 0:02:36.5]} 16... Qb6 {[%clk 0:02:51.6]}
17. Bd2 {[%clk 0:02:34.7]} 17... Nc6 {[%clk 0:02:52.7]} 18. h4 {[%clk
0:02:28.1]} 18... h6 {[%clk 0:02:51.8]} 19. Kg2 {[%clk 0:02:17.2]} 19... Nf8
{[%clk 0:02:41.8]} 20. h5 {[%clk 0:02:00.5]} 20... Nh7 {[%clk 0:02:37.8]} 21.
Be3 {[%clk 0:01:55.7]} 21... a5 {[%clk 0:02:20.4]} 22. Qb1 {[%clk 0:01:55.4]}
22... Ng5 {[%clk 0:02:14.5]} 23. Nd2 {[%clk 0:01:54.4]} 23... b4 {[%clk
0:02:10.9]} 24. a4 {[%clk 0:01:50.8]} 24... f5 {[%clk 0:02:03.5]} 25. f4 {[%clk
0:01:41.9]} 25... Ne4 {[%clk 0:02:04.2]} 26. Nxe4 {[%clk 0:01:37.4]} 26... dxe4
{[%clk 0:01:51.3]} 27. Bc4 {[%clk 0:01:36.9]} 27... Nd8 {[%clk 0:01:52.3]} 28.
Bg1 {[%clk 0:01:30.7]} 28... Qb7 {[%clk 0:01:52.5]} 29. Qb2 {[%clk 0:01:28.6]}
29... Bc6 {[%clk 0:01:53.5]} 30. Be3 {[%clk 0:01:25.4]} 30... Bd5 {[%clk
0:01:54.6]} 31. Rac1 {[%clk 0:01:26.2]} 31... Kf7 {[%clk 0:01:55.1]} 32. Bb5
{[%clk 0:01:24.9]} 32... Rxc1 {[%clk 0:01:52.5]} 33. Rxc1 {[%clk 0:01:24.9]}
33... Nc6 {[%clk 0:01:53.6]} 34. Bc4 {[%clk 0:01:25.4]} 34... Nb8 {[%clk
0:01:46.4]} 35. Bxd5 {[%clk 0:01:23.7]} 35... Qxd5 {[%clk 0:01:45.5]} 36. Qc2
{[%clk 0:01:21.1]} 36... Rd8 {[%clk 0:01:38.4]} 37. Qc4 {[%clk 0:01:21.6]} 37...
Qxc4 {[%clk 0:01:26.4]} 38. Rxc4 {[%clk 0:01:18.9]} 38... Rd7 {[%clk 0:01:19.8]}
39. g4 {[%clk 0:01:20]} 39... fxg4 {[%clk 0:01:04.8]} 40. Ng3 {[%clk 0:01:20.8]}
40... g6 {[%clk 0:01:06.3]} 41. hxg6+ {[%clk 0:01:16]} 41... Kxg6 {[%clk
0:01:08.2]} 42. Nxe4 {[%clk 0:01:17.1]} 42... h5 {[%clk 0:01:09.8]} 43. Kg3
{[%clk 0:01:17]} 43... Kf5 {[%clk 0:01:10.4]} 44. Ng5 {[%clk 0:01:16.1]} 44...
Bxg5 {[%clk 0:01:10.9]} 45. fxg5 {[%clk 0:01:17.7]} 45... Rh7 {[%clk 0:01:09.6]}
46. Rc8 {[%clk 0:01:16.9]} 46... h4+ {[%clk 0:01:10.4]} 47. Kh2 {[%clk
0:01:17.1]} 47... Nd7 {[%clk 0:01:09.4]} 48. Rf8+ {[%clk 0:01:09.3]} 48... Ke4
{[%clk 0:01:09.7]} 49. Bg1 {[%clk 0:01:10.8]} 49... Nxf8 {[%clk 0:01:10.5]} 0-1

[Event "*** Titled Tuesday Blitz"]
[Site "Chess.com"]
[Date "2018.08.07"]
[Round "1"]
[White "JonahWillow"]
[Black "FearNoEvil12"]
[Result "1-0"]
[WhiteElo "2452"]
[BlackElo "1949"]
[TimeControl "180+2"]
[EndTime "13:07:24 PDT"]
[Termination "JonahWillow won by resignation"]

1. e4 {[%clk 0:03:00.9]} 1... a6 {[%clk 0:02:59.5]} 2. d4 {[%clk 0:03:01.7]}
2... b5 {[%clk 0:03:00.6]} 3. a4 {[%clk 0:03:00.5]} 3... b4 {[%clk 0:03:00]} 4.
c3 {[%clk 0:03:00.9]} 4... e6 {[%clk 0:02:58.4]} 5. Nf3 {[%clk 0:03:01.2]} 5...
Bb7 {[%clk 0:02:58.2]} 6. Bd3 {[%clk 0:03:02.8]} 6... Nf6 {[%clk 0:02:57.5]} 7.
e5 {[%clk 0:03:02.5]} 7... Ng8 {[%clk 0:02:49.9]} 8. O-O {[%clk 0:03:03.1]} 8...
h6 {[%clk 0:02:50.1]} 9. Qe2 {[%clk 0:03:01.1]} 9... bxc3 {[%clk 0:02:49.8]} 10.
Nxc3 {[%clk 0:03:01.2]} 10... Nc6 {[%clk 0:02:47.6]} 11. Be4 {[%clk 0:03:01.4]}
11... Rb8 {[%clk 0:02:46.9]} 12. Rd1 {[%clk 0:02:59.3]} 12... Nge7 {[%clk
0:02:46.1]} 13. Bf4 {[%clk 0:02:57.3]} 13... g5 {[%clk 0:02:42.5]} 14. Bg3
{[%clk 0:02:55.6]} 14... Rg8 {[%clk 0:02:43.9]} 15. d5 {[%clk 0:02:46.9]} 15...
exd5 {[%clk 0:02:43.2]} 16. Bxd5 {[%clk 0:02:48.3]} 16... Nxd5 {[%clk
0:02:42.1]} 17. Nxd5 {[%clk 0:02:50.1]} 17... Be7 {[%clk 0:02:36.5]} 18. e6
{[%clk 0:02:51.5]} 18... d6 {[%clk 0:02:29.3]} 19. exf7+ {[%clk 0:02:40.8]}
19... Kxf7 {[%clk 0:02:30.7]} 20. Re1 {[%clk 0:02:42.5]} 20... Bf6 {[%clk
0:02:24.1]} 21. Qe6+ {[%clk 0:02:42.7]} 21... Kg7 {[%clk 0:02:23.6]} 22. Rac1
{[%clk 0:02:28.3]} 22... Rf8 {[%clk 0:02:12.8]} 23. b4 {[%clk 0:02:21.2]} 23...
Bc8 {[%clk 0:02:07]} 24. Qe4 {[%clk 0:02:18.6]} 24... Ne5 {[%clk 0:01:55.7]} 25.
Rxc7+ {[%clk 0:02:16.8]} 25... Rf7 {[%clk 0:01:47.3]} 26. Rxf7+ {[%clk
0:02:09.2]} 26... Nxf7 {[%clk 0:01:41.1]} 27. Nd4 {[%clk 0:02:02.4]} 27... Ne5
{[%clk 0:01:05.9]} 28. Bxe5 {[%clk 0:01:36.9]} 28... dxe5 {[%clk 0:01:02.4]} 29.
Nc6 {[%clk 0:01:35.6]} 29... Qd6 {[%clk 0:00:57.2]} 30. Nxb8 {[%clk 0:01:36.3]}
30... Qxb8 {[%clk 0:00:57.5]} 31. Nxf6 {[%clk 0:01:37.9]} 31... Kxf6 {[%clk
0:00:58]} 32. Qc6+ {[%clk 0:01:37.6]} 32... Be6 {[%clk 0:00:57.1]} 33. b5 {[%clk
0:01:38.8]} 33... axb5 {[%clk 0:00:57.4]} 34. axb5 {[%clk 0:01:40.7]} 34... Qa7
{[%clk 0:00:52]} 35. Qf3+ {[%clk 0:01:37.1]} 35... Ke7 {[%clk 0:00:44.6]} 36.
Qe3 {[%clk 0:01:37.4]} 36... Qxe3 {[%clk 0:00:37.7]} 37. Rxe3 {[%clk 0:01:38.2]}
37... Kd6 {[%clk 0:00:39.1]} 38. b6 {[%clk 0:01:38.7]} 38... Bc8 {[%clk
0:00:39.2]} 39. Rc3 {[%clk 0:01:38.2]} 39... Bb7 {[%clk 0:00:38.2]} 40. f3
{[%clk 0:01:38.4]} 40... g4 {[%clk 0:00:36.6]} 41. Kf2 {[%clk 0:01:38.3]} 41...
gxf3 {[%clk 0:00:36.4]} 42. gxf3 {[%clk 0:01:40.2]} 42... e4 {[%clk 0:00:31.6]}
43. fxe4 {[%clk 0:01:40.6]} 43... Bxe4 {[%clk 0:00:32.4]} 44. Ke3 {[%clk
0:01:42.3]} 44... Bb7 {[%clk 0:00:32.8]} 45. Kd4 {[%clk 0:01:43.3]} 45... h5
{[%clk 0:00:32.3]} 46. Rh3 {[%clk 0:01:44.3]} 46... Kc6 {[%clk 0:00:31.1]} 47.
Rxh5 {[%clk 0:01:44.9]} 47... Kxb6 {[%clk 0:00:32.7]} 48. h4 {[%clk 0:01:46.7]}
48... Kc7 {[%clk 0:00:33.2]} 49. Rh7+ {[%clk 0:01:47.6]} 49... Kc6 {[%clk
0:00:34.3]} 50. h5 {[%clk 0:01:47.7]} 50... Bc8 {[%clk 0:00:33.6]} 51. h6 {[%clk
0:01:48.6]} 51... Bf5 {[%clk 0:00:34]} 52. Rf7 {[%clk 0:01:50]} 1-0

[Event "*** Titled Tuesday Blitz"]
[Site "Chess.com"]
[Date "2018.08.07"]
[Round "1"]
[White "MaxLeto"]
[Black "wonderfultime"]
[Result "0-1"]
[WhiteElo "2399"]
[BlackElo "2837"]
[TimeControl "180+2"]
[EndTime "13:07:26 PDT"]
[Termination "wonderfultime won on time"]

1. d4 {[%clk 0:02:21.4]} 1... e6 {[%clk 0:02:59.1]} 2. Bf4 {[%clk 0:02:21.3]}
2... Nf6 {[%clk 0:02:58.5]} 3. e3 {[%clk 0:02:21.9]} 3... c5 {[%clk 0:02:57.9]}
4. c3 {[%clk 0:02:22]} 4... d5 {[%clk 0:02:59]} 5. Nd2 {[%clk 0:02:21.8]} 5...
Bd6 {[%clk 0:03:00.3]} 6. Bg3 {[%clk 0:02:21.2]} 6... O-O {[%clk 0:03:01.2]} 7.
Bd3 {[%clk 0:02:21.4]} 7... Qc7 {[%clk 0:03:02.3]} 8. Ngf3 {[%clk 0:02:03.6]}
8... Nbd7 {[%clk 0:03:02.6]} 9. Qe2 {[%clk 0:01:58.9]} 9... e5 {[%clk
0:02:57.1]} 10. dxe5 {[%clk 0:01:54.7]} 10... Nxe5 {[%clk 0:02:59]} 11. Nxe5
{[%clk 0:01:56.1]} 11... Bxe5 {[%clk 0:03:00.9]} 12. Nf3 {[%clk 0:01:56.8]}
12... Bd6 {[%clk 0:03:02.3]} 13. O-O-O {[%clk 0:01:50.6]} 13... Re8 {[%clk
0:02:57]} 14. Qc2 {[%clk 0:01:33.9]} 14... Bd7 {[%clk 0:01:30.1]} 15. Bh4 {[%clk
0:00:48.5]} 15... Ne4 {[%clk 0:01:29.6]} 16. Ng5 {[%clk 0:00:49.3]} 16... Nxg5
{[%clk 0:01:23.5]} 17. Bxg5 {[%clk 0:00:49.9]} 17... h6 {[%clk 0:01:25.4]} 18.
Bh4 {[%clk 0:00:49.6]} 18... Be6 {[%clk 0:01:16.1]} 19. h3 {[%clk 0:00:37.7]}
19... b5 {[%clk 0:01:06.1]} 20. Bxb5 {[%clk 0:00:34.8]} 20... Reb8 {[%clk
0:01:06.8]} 21. Be2 {[%clk 0:00:26.2]} 21... Qa5 {[%clk 0:00:55.9]} 22. Kb1
{[%clk 0:00:21.3]} 22... Rb6 {[%clk 0:00:51.1]} 23. Ka1 {[%clk 0:00:21.5]} 23...
Rab8 {[%clk 0:00:52]} 24. Rb1 {[%clk 0:00:16.2]} 24... d4 {[%clk 0:00:49.7]} 25.
c4 {[%clk 0:00:15.2]} 25... dxe3 {[%clk 0:00:50.8]} 26. fxe3 {[%clk 0:00:16.4]}
26... Be5 {[%clk 0:00:52.3]} 27. Be1 {[%clk 0:00:12.5]} 27... Rxb2 {[%clk
0:00:45.7]} 28. Rxb2 {[%clk 0:00:07.9]} 28... Rxb2 {[%clk 0:00:46.3]} 29. Qxb2
{[%clk 0:00:03]} 29... Qa3 {[%clk 0:00:47.1]} 0-1